bitfinex-derivatives/quotes_ETHF0:USTF0_20240913
["timestamp","ask_amount","ask_price","bid_price","bid_amount"]
[1726216059639,3.01782909,2349.0,2348.9,0.4257]
[1726216059841,3.01786081,2349.0,2348.9,0.4257]
[1726216060446,0.789,2349.0,2348.9,0.4257]
[1726216060744,3.01787726,2349.0,2348.9,0.4257]
[1726216060943,3.01783332,2349.0,2348.9,0.4257]
[1726216061645,0.789,2349.0,2348.9,0.4257]
[1726216067251,3.577276,2349.0,2348.9,0.4257]
[1726216069548,8.260576,2349.0,2348.8,0.42571]
[1726216069746,1.909,2348.9,2348.8,0.42571]
[1726216069950,4.697276,2348.9,2348.8,0.42571]
[1726216070359,1.909,2348.9,2348.8,0.42571]
[1726216070752,4.697276,2348.9,2348.8,0.42571]
[1726216071062,5.122976,2348.9,2348.8,0.42571]
[1726216071650,4.697276,2348.9,2348.8,0.42571]
[1726216071859,2.6081342,2348.9,2348.8,0.42571]
[1726216072163,0.379,2348.9,2348.8,0.42571]
[1726216073354,2.60821044,2348.9,2348.8,0.42571]
[1726216073553,0.379,2348.9,2348.8,0.42571]
[1726216073955,0.57229548,2348.9,2348.8,0.42571]
[1726216074457,2.80151101,2348.9,2348.8,0.42571]
[1726216076063,0.57229548,2348.9,2348.8,0.42571]
[1726216077557,2.80154269,2348.9,2348.8,0.42571]
[1726216077765,0.57229548,2348.9,2348.8,0.42571]
[1726216082563,3.36057148,2348.9,2348.8,0.42571]
[1726216082763,2.42323793,2348.9,2348.8,11.54975]
[1726216082962,1.86568007,2348.9,2348.8,11.54975]
[1726216084571,0.19329548,2348.9,2348.8,11.54975]
[1726216086468,2.42323793,2348.9,2348.8,11.54975]
[1726216088368,2.42323793,2348.9,2348.8,10.48543]
[1726216089478,0.19329548,2348.9,2348.8,10.48543]
[1726216089973,2.98157148,2348.9,2348.8,10.48543]
[1726216090168,0.19329548,2348.9,2348.8,10.48543]
[1726216090474,2.98157148,2348.9,2348.8,10.48543]
[1726216091072,0.19329548,2348.9,2348.8,10.48543]
[1726216091373,2.98157148,2348.9,2348.8,10.48543]
[1726216092077,0.19329548,2348.9,2348.8,10.48543]
[1726216093574,0.19329548,2348.9,2348.8,7.27763]
[1726216093775,0.19329548,2348.9,2348.8,10.48543]
[1726216094176,0.19329548,2348.9,2348.8,7.27763]
[1726216094381,0.19329548,2348.9,2348.8,10.48543]
[1726216094769,0.19329548,2348.9,2348.8,5.16351]
[1726216094770,2.98157148,2348.9,2348.8,5.16351]
[1726216095076,3.39137148,2348.9,2348.8,5.16351]
[1726216095978,0.19329548,2348.9,2348.8,9.42111]
[1726216096179,0.19329548,2348.9,2348.8,10.48543]
[1726216097170,2.42668029,2348.9,2348.8,10.48543]
[1726216098883,0.19329548,2348.9,2348.8,10.48543]
[1726216101083,0.19329548,2348.9,2348.8,6.22783]
[1726216102080,0.19329548,2348.9,2348.8,3.02003]
[1726216102378,0.19329548,2348.9,2348.8,6.22783]
[1726216103080,0.19329548,2348.9,2348.8,3.02003]
[1726216103280,0.19329548,2348.9,2348.8,6.22783]
[1726216105679,0.19329548,2348.9,2348.8,3.02003]
[1726216105881,0.19329548,2348.9,2348.8,6.22783]
[1726216106083,0.19329548,2348.9,2348.8,3.02003]
[1726216106272,0.19329548,2348.9,2348.8,6.22783]
[1726216106585,0.19329548,2348.9,2348.8,3.02003]
[1726216106782,0.19329548,2348.9,2348.8,6.22783]
[1726216108091,0.19329548,2348.9,2348.8,3.02003]
[1726216108295,0.19329548,2348.9,2348.8,4.69783]
[1726216110077,0.19329548,2348.9,2348.8,1.49003]
[1726216110282,0.19329548,2348.9,2348.8,4.69783]
[1726216111388,0.60369548,2348.9,2348.8,4.69783]
[1726216112587,0.60369548,2348.9,2348.8,1.49003]
[1726216112888,0.60369548,2348.9,2348.8,4.69783]
[1726216114195,0.60369548,2348.9,2348.8,11.54975]
[1726216114196,0.19329548,2348.9,2348.8,11.54975]
[1726216114395,0.19329548,2348.9,2348.8,13.51221286]
[1726216114793,0.19329548,2348.9,2348.8,13.06331339]
[1726216115301,1.8678872,2348.9,2348.8,13.51220115]
[1726216116999,1.8678872,2348.9,2348.8,13.10910115]
[1726216117000,1.86787245,2348.9,2348.8,13.10910115]
[1726216117193,1.86787245,2348.9,2348.8,11.99863776]
[1726216117397,0.19329548,2348.9,2348.8,11.99863776]
[1726216118098,0.19329548,2348.9,2348.8,11.54975]
[1726216118494,0.19329548,2348.9,2348.8,7.74104758]
[1726216119405,0.19329548,2348.9,2348.8,11.99864758]
[1726216119604,0.19329548,2348.9,2348.8,8.79084758]
[1726216119796,0.19329548,2348.9,2348.8,11.99864758]
[1726216121105,0.19329548,2348.9,2348.8,11.54975]
[1726216122005,0.19329548,2348.9,2348.8,7.29215]
[1726216122409,0.19329548,2348.9,2348.8,8.85151325]
[1726216124408,2.42625332,2348.9,2348.8,8.85151325]
[1726216124607,2.42625332,2348.9,2348.8,8.40261339]
[1726216125311,2.42625332,2348.9,2348.8,8.8515148]
[1726216126407,2.42625332,2348.9,2348.8,5.6437148]
[1726216126605,2.42625332,2348.9,2348.8,7.7871948]
[1726216128015,2.42625332,2348.9,2348.8,7.78719585]
[1726216128514,2.42625332,2348.9,2348.8,4.57939585]
[1726216128712,2.42625332,2348.9,2348.8,7.78719585]
[1726216128914,0.19329548,2348.9,2348.8,3.63351]
[1726216129524,0.58339548,2348.9,2348.8,3.63351]
[1726216129828,3.37167148,2348.9,2348.8,3.63351]
[1726216130232,2.81734533,2348.9,2348.8,3.63351]
[1726216130522,0.58339548,2348.9,2348.8,3.63351]
[1726216130723,2.81733605,2348.9,2348.8,3.63351]
[1726216131129,0.58339548,2348.9,2348.8,3.63351]
[1726216131318,2.8173165,2348.9,2348.8,3.63351]
[1726216131718,0.58339548,2348.9,2348.8,3.63351]
[1726216131922,0.19329548,2348.9,2348.8,7.89111]
[1726216132126,2.42716704,2348.9,2348.8,11.37778468]
[1726216132523,2.42716704,2348.9,2348.8,12.44210468]
[1726216132722,0.19329548,2348.9,2348.8,14.24658534]
[1726216133221,1.86860546,2348.9,2348.8,14.24658534]
[1726216133428,1.86860546,2348.9,2348.8,14.24642719]
[1726216133828,0.19329548,2348.9,2348.8,13.69353614]
[1726216134826,0.19329548,2348.9,2348.8,14.14242849]
[1726216135024,0.19329548,2348.9,2348.8,13.6935172]
[1726216135833,1.8684828,2348.9,2348.8,13.6935172]
[1726216136822,1.8684828,2348.9,2348.8,14.24640825]
[1726216137725,1.8684828,2348.9,2348.8,14.24640979]
[1726216138121,1.8684828,2348.9,2348.8,14.24622552]
[1726216138524,1.8684828,2348.9,2348.8,14.55129901]
[1726216139622,1.8684828,2348.9,2348.8,12.58069139]
[1726216139823,1.8684828,2348.9,2348.8,13.29583759]
[1726216140026,1.8684828,2348.9,2348.8,12.04677009]
[1726216140229,1.8684828,2348.9,2348.8,13.29583789]
[1726216140431,1.8684828,2348.9,2348.8,12.04677009]
[1726216140737,1.8684828,2348.9,2348.8,11.5978762]
[1726216140934,0.19329548,2348.9,2348.8,12.04676602]
[1726216142335,1.86824079,2348.9,2348.8,12.04676602]
[1726216142930,0.19329548,2348.9,2348.8,12.04676602]
[1726216143137,1.8682146,2348.9,2348.8,12.04676602]
[1726216143435,1.8682146,2348.9,2348.8,11.5978762]
[1726216143627,1.8682146,2348.9,2348.8,12.04676918]
[1726216145124,1.8682146,2348.9,2348.8,13.29580869]
[1726216145537,1.8682146,2348.9,2348.8,7.78916918]
[1726216146637,0.19329548,2348.9,2348.8,7.78916918]
[1726216147451,0.19329548,2348.9,2348.8,7.78917276]
[1726216148643,0.19329548,2348.9,2348.8,4.58137276]
[1726216148840,0.19329548,2348.9,2348.8,7.78917276]
[1726216149539,0.19329548,2348.9,2348.8,7.3402762]
[1726216149730,0.19329548,2348.9,2348.8,7.7891701]
[1726216150844,1.86832315,2348.9,2348.8,9.0383117]
[1726216151040,0.19329548,2348.9,2348.8,7.7891701]
[1726216151542,2.42716704,2348.9,2348.8,7.7891701]
[1726216153043,2.42716704,2348.9,2348.8,7.78919316]
[1726216153239,0.19329548,2348.9,2348.8,7.78919316]
[1726216153438,2.42716704,2348.9,2348.8,7.78919316]
[1726216156348,2.42716704,2348.9,2348.8,7.78918905]
[1726216160038,2.42716704,2348.9,2348.8,4.58138905]
[1726216160245,2.42716704,2348.9,2348.8,7.78918905]
[1726216160545,2.42716704,2348.9,2348.8,4.58138905]
[1726216160849,2.42716704,2348.9,2348.8,7.78918905]
[1726216161442,0.19329548,2348.9,2348.8,7.78918905]
[1726216161639,0.19329548,2348.9,2348.8,6.72486905]
[1726216161838,0.19329548,2348.9,2348.8,7.78918905]
[1726216163146,0.19329548,2348.9,2348.8,7.3402762]
[1726216163449,0.19329548,2348.9,2348.8,7.78921518]
[1726216163752,2.98157148,2348.9,2348.8,0.42572]
[1726216164147,2.98157148,2348.9,2348.8,3.63352]
[1726216164343,2.98157148,2348.9,2348.8,0.42572]
[1726216164552,2.98157148,2348.9,2348.8,3.63352]
[1726216164751,0.19329548,2348.9,2348.8,0.42572]
[1726216165256,2.98609763,2348.9,2348.8,0.42572]
[1726216165459,0.19329548,2348.9,2348.8,0.42572]
[1726216165859,2.98615175,2348.9,2348.8,3.63352]
[1726216169556,2.98615175,2348.9,2348.8,0.42572]
[1726216171455,3.36845175,2348.9,2348.8,0.42572]
[1726216174758,0.57559548,2348.9,2348.8,0.80622]
[1726216180658,0.57559548,2348.9,2348.8,4.01402]
[1726216182063,0.57559548,2348.9,2348.8,0.80622]
[1726216182259,0.57559548,2348.9,2348.8,4.01402]
[1726216187572,3.36845175,2348.9,2348.8,0.80622]
[1726216187774,3.36845175,2348.9,2348.8,4.01402]
[1726216188975,0.57559548,2348.9,2348.8,4.01402]
[1726216189178,3.36845175,2348.9,2348.8,4.01402]
[1726216189568,3.36845175,2348.9,2348.8,0.80622]
[1726216189769,3.36845175,2348.9,2348.8,4.01402]
[1726216190576,0.57559548,2348.9,2348.8,4.01402]
[1726216191178,3.36845175,2348.9,2348.8,4.01402]
[1726216192174,3.36845175,2348.9,2348.8,3.63352]
[1726216192768,3.36845175,2348.9,2348.6,3.4091462]
[1726216192973,2.23408331,2348.7,2348.6,2.2967]
[1726216193174,2.23408331,2348.7,2348.6,3.17139443]
[1726216193371,3.04328331,2348.7,2348.6,3.17139443]
[1726216193577,3.04328331,2348.7,2348.6,4.28384063]
[1726216193973,3.23657879,2348.7,2348.6,3.17139443]
[1726216195674,3.23657879,2348.7,2348.6,4.28384063]
[1726216195875,3.23657879,2348.7,2348.6,3.17139443]
[1726216196583,3.23657879,2348.7,2348.6,4.28384063]
[1726216197683,3.23657879,2348.7,2348.6,3.17139443]
[1726216197989,3.23657879,2348.7,2348.6,4.28384063]
[1726216198177,3.23657879,2348.7,2348.6,4.23580443]
[1726216198376,2.83297879,2348.7,2348.6,5.34825063]
[1726216198578,2.42737879,2348.7,2348.6,5.34825063]
[1726216199675,2.42737879,2348.7,2348.6,4.8993162]
[1726216199981,2.42737879,2348.7,2348.6,5.34826789]
[1726216202275,1.86881596,2348.7,2348.6,12.02393289]
[1726216202474,1.86881596,2348.7,2348.6,12.47284132]
[1726216204279,1.86881596,2348.7,2348.6,8.21524132]
[1726216205875,1.86881596,2348.7,2348.6,7.76633289]
[1726216206382,1.86881596,2348.7,2348.6,11.42301535]
[1726216206778,1.86881596,2348.7,2348.6,15.23173289]
[1726216206979,1.86881596,2348.7,2348.6,15.6806085]
[1726216208185,1.86881596,2348.7,2348.6,11.4230085]
[1726216208384,1.86881596,2348.7,2348.6,10.17348974]
[1726216208690,1.86881596,2348.7,2348.6,11.4232836]
[1726216208885,1.86881596,2348.7,2348.6,8.8288736]
[1726216209081,0.19329548,2348.7,2348.6,7.7644636]
[1726216209281,3.20447879,2348.7,2348.6,5.96243536]
[1726216209481,3.20501775,2348.7,2348.6,5.96243536]
[1726216209687,0.97039548,2348.7,2348.6,5.96243536]
[1726216209887,3.20501307,2348.7,2348.6,5.96243536]
[1726216211883,3.20501307,2348.7,2348.6,5.19573536]
[1726216213786,0.97039548,2348.7,2348.6,4.08243561]
[1726216213993,0.97039548,2348.7,2348.6,5.19573536]
[1726216214187,5.29299962,2348.7,2348.5,1.11329975]
[1726216214388,5.29299962,2348.7,2348.5,0.42576]
[1726216214597,2.79260414,2348.6,2348.5,0.42578]
[1726216214798,2.79260414,2348.6,2348.4,1.53907975]
[1726216214987,0.58019548,2348.5,2348.4,0.42578]
[1726216215186,0.58019548,2348.5,2348.4,0.87492047]
[1726216215385,0.58019548,2348.5,2348.4,0.42578]
[1726216215805,2.8142624,2348.5,2348.4,0.87491128]
[1726216215982,0.58019548,2348.5,2348.4,0.87491128]
[1726216216599,0.58019548,2348.5,2348.4,0.42578]
[1726216217597,2.81349157,2348.5,2348.4,0.42578]
[1726216223091,2.81349157,2348.5,2348.4,0.4258]
[1726216225494,8.11019548,2348.5,2348.0,8.51909975]
[1726216225698,8.11019548,2348.5,2348.0,4.74696975]
[1726216225699,1.11576788,2348.1,2348.0,4.74696975]
[1726216225902,1.6737239,2348.1,2348.0,3.2078]
[1726216226099,0.97959548,2348.1,2348.0,3.63367]
[1726216226499,2.65286892,2348.1,2348.0,3.63367]
[1726216226705,0.97959548,2348.1,2348.0,3.63367]
[1726216226896,2.65290478,2348.1,2348.0,3.63367]
[1726216227203,0.97959548,2348.1,2348.0,3.63367]
[1726216227904,2.65287393,2348.1,2348.0,3.63367]
[1726216228103,0.97959548,2348.1,2348.0,3.63367]
[1726216228300,2.65237476,2348.1,2348.0,3.63367]
[1726216229905,0.97959548,2348.1,2348.0,3.63367]
[1726216230101,2.65237476,2348.1,2348.0,3.63367]
[1726216230815,0.97959548,2348.1,2348.0,3.63367]
[1726216231110,2.65237476,2348.1,2348.0,3.63367]
[1726216231401,0.97959548,2348.1,2348.0,3.63367]
[1726216231593,2.09416535,2348.1,2348.0,3.63367]
[1726216231798,0.97959548,2348.1,2348.0,3.63367]
[1726216232605,2.09403917,2348.1,2348.0,3.63367]
[1726216234702,2.65237476,2348.1,2348.0,3.63367]
[1726216235504,0.97959548,2348.1,2348.0,3.63367]
[1726216235812,2.09376278,2348.1,2348.0,3.63367]
[1726216236506,2.09376278,2348.1,2348.0,4.02737]
[1726216239511,2.09376278,2348.1,2348.0,0.81957]
[1726216239713,2.09376278,2348.1,2348.0,4.02737]
[1726216241108,0.97959548,2348.1,2348.0,4.02737]
[1726216241313,0.97959548,2348.1,2348.0,0.42587]
[1726216241314,2.09376278,2348.1,2348.0,0.42587]
[1726216242100,2.09376278,2348.1,2347.9,0.42588]
[1726216242506,2.09376278,2348.1,2348.0,0.42587]
[1726216243317,6.91157476,2348.1,2347.9,0.42588]
[1726216243507,1.11380286,2348.0,2347.9,0.42588]
[1726216243904,5.37300286,2348.0,2347.9,0.42588]
[1726216244215,1.30709834,2348.0,2347.9,0.42588]
[1726216245719,0.19329548,2348.0,2347.9,0.42588]
[1726216248115,1.30709834,2348.0,2347.9,0.42588]
[1726216252010,0.4259,2347.8,2347.7,3.2078]
[1726216252214,0.19329548,2347.8,2347.7,0.42592]
[1726216252517,0.96609548,2347.8,2347.7,0.42592]
[1726216252710,3.197672,2347.8,2347.7,0.42592]
[1726216253111,0.96609548,2347.8,2347.7,0.42592]
[1726216253616,3.197672,2347.8,2347.7,0.42592]
[1726216253917,0.96609548,2347.8,2347.7,0.42592]
[1726216263615,3.197672,2347.8,2347.7,0.42592]
[1726216264328,0.96609548,2347.8,2347.7,0.42592]
[1726216264627,3.197672,2347.8,2347.7,0.42592]
[1726216265326,0.96609548,2347.8,2347.7,0.42592]
[1726216265528,3.197672,2347.8,2347.7,0.42592]
[1726216266329,1.86480895,2347.8,2347.7,1.95592]
[1726216266528,1.86480895,2347.8,2347.7,2.74142]
[1726216267421,1.30771817,2347.8,2347.7,2.74142]
[1726216267624,1.30771817,2347.8,2347.7,8.06543]
[1726216267922,0.19329548,2347.8,2347.7,8.06543]
[1726216271536,1.30771817,2347.8,2347.7,8.06543]
[1726216272634,0.19329548,2347.8,2347.7,8.06543]
[1726216272824,1.30771817,2347.8,2347.7,8.06543]
[1726216274636,1.30771817,2347.8,2347.7,11.27323]
[1726216275630,0.19329548,2347.8,2347.7,11.27323]
[1726216276527,1.30771817,2347.8,2347.7,11.27323]
[1726216279030,1.30771817,2347.8,2347.7,7.01403]
[1726216279427,1.30771817,2347.8,2347.7,11.27323]
[1726216279627,1.30771817,2347.8,2347.7,7.01403]
[1726216280327,1.30771817,2347.8,2347.7,11.27323]
[1726216280636,1.30771817,2347.8,2347.7,7.01403]
[1726216280834,1.30771817,2347.8,2347.7,11.27323]
[1726216281530,1.30771817,2347.8,2347.7,7.01403]
[1726216281740,1.30771817,2347.8,2347.7,11.27323]
[1726216282736,1.30771817,2347.8,2347.7,7.01403]
[1726216282942,1.30771817,2347.8,2347.7,11.27323]
[1726216283442,1.30771817,2347.8,2347.7,10.20842]
[1726216283644,1.30771817,2347.8,2347.7,5.94922]
[1726216284138,1.30902429,2347.8,2347.7,4.03632]
[1726216284438,0.96199548,2347.8,2347.6,0.82904]
[1726216284640,0.3918,2347.7,2347.6,0.82904]
[1726216284936,2.06561948,2347.7,2347.6,3.6109]
[1726216285136,2.25891496,2347.7,2347.6,4.03684]
[1726216285639,2.25891496,2347.7,2347.6,0.82904]
[1726216285938,9.031802,2347.7,2347.2,2.64329975]
[1726216286138,1.11603693,2347.4,2347.3,4.00548]
[1726216286341,1.86735088,2347.4,2347.3,4.00548]
[1726216286540,2.63015088,2347.4,2347.3,4.00548]
[1726216287139,3.04075088,2347.4,2347.3,4.00548]
[1726216289040,3.04075088,2347.4,2347.3,0.79768]
[1726216289231,3.04075088,2347.4,2347.3,4.00548]
[1726216289633,3.04075088,2347.4,2347.3,3.2078]
[1726216289840,3.04075088,2347.4,2347.3,3.6338]
[1726216291539,3.04075088,2347.4,2347.3,0.426]
[1726216293249,1.36669548,2347.4,2347.3,0.426]
[1726216294239,5.128272,2347.4,2347.0,0.3883]
[1726216294435,1.11564869,2347.1,2347.0,2.34435]
[1726216294841,1.48784869,2347.1,2347.0,2.34435]
[1726216295349,1.68114417,2347.1,2347.0,2.34435]
[1726216297545,0.56549548,2347.1,2347.0,2.34435]
[1726216299242,0.56549548,2347.1,2347.0,5.55215]
[1726216302046,0.56549548,2347.1,2347.0,4.02215]
[1726216302348,1.30894417,2347.1,2347.0,5.16385]
[1726216302650,0.19329548,2347.1,2347.0,19.84970975]
[1726216302848,1.11564869,2347.5,2347.4,0.42598]
[1726216303051,1.11564869,2347.6,2347.5,0.42596]
[1726216303240,1.11564869,2347.9,2347.5,5.47406]
[1726216303446,1.11564869,2347.9,2347.8,5.1637]
[1726216305550,1.11564869,2348.1,2348.0,0.42587]
[1726216305757,1.11564869,2348.2,2348.1,0.42585]
[1726216305952,1.11564869,2348.3,2348.2,0.42583]
[1726216306146,1.11564869,2348.3,2348.2,1.95583]
[1726216306361,1.67347304,2348.4,2348.3,0.42581]
[1726216306362,1.11564869,2348.4,2348.3,0.42581]
[1726216306657,2.05947304,2348.5,2348.4,0.4258]
[1726216306658,1.11564869,2348.5,2348.4,0.4258]
[1726216307049,1.11564869,2348.5,2348.4,1.9558]
[1726216308255,1.11564869,2348.6,2348.4,1.9558]
[1726216309059,1.11564869,2348.5,2348.4,1.9558]
[1726216309254,1.67347304,2348.6,2348.4,1.9558]
[1726216309255,1.11564869,2348.6,2348.4,1.9558]
[1726216311158,1.11564869,2348.6,2348.5,0.42578]
[1726216312365,2.04577304,2348.7,2348.5,0.42578]
[1726216312366,1.48794869,2348.7,2348.5,0.42578]
[1726216312658,1.48794869,2348.7,2348.6,1.53]
[1726216313065,1.48794869,2348.7,2348.6,1.95576]
[1726216313364,1.48794869,2348.7,2348.6,1.53]
[1726216313564,1.48794869,2348.7,2348.6,1.95576]
[1726216313964,1.48794869,2348.7,2348.6,1.53]
[1726216314361,1.48794869,2348.7,2348.6,1.95576]
[1726216316270,0.3723,2348.7,2348.6,5.16356]
[1726216321774,0.3723,2348.7,2348.6,5.54206]
[1726216322467,0.3723,2348.7,2348.6,5.16356]
[1726216322664,0.3723,2348.7,2348.6,0.42576]
[1726216323579,0.3723,2348.7,2348.6,1.95576]
[1726216323775,0.3723,2348.7,2348.6,5.16356]
[1726216327281,0.3723,2348.7,2348.6,1.95576]
[1726216330381,0.3723,2348.7,2348.6,3.02017]
[1726216332882,0.3723,2348.7,2348.6,1.95576]
[1726216334277,0.3723,2348.7,2348.6,3.02017]
[1726216334881,0.3723,2348.7,2348.6,3.42237]
[1726216335778,0.3958,2348.9,2348.8,0.42572]
[1726216335979,0.3831,2349.0,2348.9,0.4257]
[1726216336279,0.3831,2349.0,2348.9,0.7983]
[1726216339669,1.49874869,2349.0,2348.9,0.7983]
[1726216342193,2.05657304,2349.0,2348.9,0.7983]
[1726216342381,2.05657304,2349.0,2348.9,0.4257]
[1726216342889,2.48226304,2349.0,2348.9,0.4257]
[1726216343187,3.04036652,2349.0,2348.9,0.4257]
[1726216343391,7.29796652,2349.0,2348.9,0.4257]
[1726216344177,4.6407,2349.0,2348.9,0.4257]
[1726216344386,5.06639,2349.0,2348.9,0.4257]
[1726216345185,7.85899414,2349.0,2348.9,0.4257]
[1726216346085,7.43330414,2349.0,2348.9,0.4257]
[1726216346276,6.86791933,2349.0,2348.9,0.4257]
[1726216347186,7.42472417,2349.0,2348.9,0.4257]
[1726216347385,0.3831,2349.0,2348.9,0.4257]
[1726216348690,2.61254244,2349.0,2348.9,0.4257]
[1726216348984,3.54752417,2349.1,2349.0,0.42569]
[1726216348985,2.78402417,2349.1,2349.0,0.42569]
[1726216349183,2.78402417,2349.1,2349.0,0.81559]
[1726216349891,2.78402417,2349.1,2349.0,1.21649]
[1726216352900,2.78402417,2349.1,2349.0,0.82659]
[1726216354200,1.17624,2349.3,2349.2,0.42565]
[1726216354700,5.43304,2349.3,2349.2,0.42565]
[1726216362106,1.17624,2349.3,2349.2,0.42565]
[1726216363914,12.79890088,2349.3,2349.2,0.42565]
[1726216364117,17.16333805,2349.3,2349.2,0.42565]
[1726216365216,17.16315906,2349.3,2349.2,0.42565]
[1726216365918,21.41995906,2349.3,2349.2,0.42565]
[1726216366214,21.41970119,2349.3,2349.2,0.42565]
[1726216366514,16.95489624,2349.3,2349.2,0.42565]
[1726216366711,0.42567,2349.1,2349.0,0.42567]
[1726216366914,4.33254238,2349.1,2349.0,0.42567]
[1726216367112,7.12578217,2349.1,2349.0,0.42567]
[1726216367313,3.21890979,2349.1,2349.0,0.42567]
[1726216368014,7.6839068,2349.1,2349.0,0.42567]
[1726216368917,3.21890979,2349.1,2349.0,0.42567]
[1726216369109,7.1258608,2349.1,2349.0,0.42567]
[1726216377124,0.42567,2349.1,2349.0,0.42567]
[1726216380530,3.77560842,2349.1,2349.0,0.42567]
[1726216380727,0.4257,2348.9,2348.8,0.42572]
[1726216380921,6.08832842,2349.0,2348.9,0.4257]
[1726216381117,7.35389896,2349.0,2348.9,0.4257]
[1726216381425,8.26156054,2349.0,2348.9,0.4257]
[1726216381821,11.61274906,2349.0,2348.9,0.4257]
[1726216383431,0.42572,2348.9,2348.8,0.42572]
[1726216383631,0.80112,2348.9,2348.8,0.42572]
[1726216384437,0.3754,2348.9,2348.8,0.42572]
[1726216385630,0.8011,2348.9,2348.6,6.111]
[1726216385828,2.79207854,2348.7,2348.6,2.33876]
[1726216386730,3.17427854,2348.7,2348.6,2.33876]
[1726216388735,2.79207854,2348.7,2348.6,2.33876]
[1726216393726,1.79207854,2348.7,2348.6,2.33876]
[1726216397344,0.7576,2348.9,2348.8,0.42572]
[1726216397535,0.8332,2349.0,2348.9,0.4257]
[1726216397736,0.8332,2349.0,2348.9,0.8269]
[1726216398143,0.8332,2349.0,2348.9,1.2132]
[1726216398542,4.18026852,2349.1,2349.0,0.42569]
[1726216399037,0.82908,2349.1,2349.0,0.42569]
[1726216399233,4.18026852,2349.1,2349.0,0.42569]
[1726216399731,0.82908,2349.1,2349.0,0.42569]
[1726216400141,4.18026852,2349.1,2349.0,0.42569]
[1726216401236,6.96025508,2349.1,2349.0,0.42569]
[1726216401443,4.18026852,2349.1,2349.0,0.42569]
[1726216402735,6.96034529,2349.1,2349.0,0.42569]
[1726216402939,4.18026852,2349.1,2349.0,0.42569]
[1726216403737,6.96040506,2349.1,2349.0,0.42569]
[1726216403939,4.18026852,2349.1,2349.0,0.42569]
[1726216404149,0.82908,2349.1,2349.0,0.42569]
[1726216404338,4.18026852,2349.1,2349.0,0.42569]
[1726216404643,0.82908,2349.1,2349.0,0.42569]
[1726216404945,4.18026852,2349.1,2349.0,0.42569]
[1726216406145,0.82908,2349.1,2349.0,0.42569]
[1726216407447,4.18026852,2349.1,2349.0,0.42569]
[1726216407644,6.95871218,2349.1,2349.0,0.42569]
[1726216407848,3.18374914,2349.1,2349.0,0.42569]
[1726216408050,3.75271858,2349.1,2349.0,0.42569]
[1726216408239,6.53306772,2349.1,2349.0,0.42569]
[1726216409541,6.95873772,2349.1,2349.0,0.42569]
[1726216409740,6.95892481,2349.1,2349.0,0.42569]
[1726216410441,3.60941914,2349.1,2349.0,0.42569]
[1726216410747,4.1787685,2349.1,2349.0,0.42569]
[1726216410941,6.95911764,2349.1,2349.0,0.42569]
[1726216411148,3.60941914,2349.1,2349.0,0.42569]
[1726216412750,4.17886478,2349.1,2349.0,0.42569]
[1726216412943,7.51637015,2349.1,2349.0,0.42569]
[1726216413349,3.60941914,2349.1,2349.0,0.42569]
[1726216413548,0.4257,2349.0,2348.9,0.42569]
[1726216413744,0.4257,2349.0,2348.7,0.42572]
[1726216413745,0.42574,2348.8,2348.7,0.42572]
[1726216414053,4.73608914,2348.8,2348.7,0.42572]
[1726216414545,6.48051677,2348.8,2348.7,0.42572]
[1726216414754,6.48051677,2348.8,2348.6,0.42575]
[1726216414755,8.81909461,2348.8,2348.6,0.42575]
[1726216414944,0.42574,2348.7,2348.6,0.42575]
[1726216415143,7.11911677,2348.8,2348.4,0.3945]
[1726216415450,0.42577,2348.6,2348.5,0.42577]
[1726216415952,0.42577,2348.6,2348.5,0.42578]
[1726216416147,0.42577,2348.6,2348.4,0.42578]
[1726216416345,3.163771,2348.5,2348.4,0.42578]
[1726216417847,3.163771,2348.5,2348.4,1.95578]
[1726216421150,0.3722,2348.5,2348.4,1.95578]
[1726216425752,0.79798,2348.5,2348.4,1.53]
[1726216425953,0.3722,2348.5,2348.4,0.4258]
[1726216426157,3.163771,2348.5,2348.4,0.4258]
[1726216426556,0.3722,2348.5,2348.4,0.4258]
[1726216427262,0.3722,2348.5,2348.4,1.9558]
[1726216427455,2.6041462,2348.5,2348.4,1.9558]
[1726216428352,0.3722,2348.5,2348.4,1.9558]
[1726216430866,2.60399354,2348.5,2348.4,1.9558]
[1726216431261,0.3722,2348.5,2348.4,1.9558]
[1726216431870,2.60397709,2348.5,2348.4,1.9558]
[1726216432163,0.3722,2348.5,2348.4,1.9558]
[1726216432562,3.163771,2348.5,2348.4,1.9558]
[1726216433565,0.3722,2348.5,2348.4,1.9558]
[1726216437969,3.163771,2348.5,2348.4,0.4258]
[1726216439467,3.589551,2348.5,2348.4,0.4258]
[1726216440167,3.163771,2348.5,2348.4,0.4258]
[1726216440366,0.3722,2348.5,2348.4,1.9558]
[1726216440565,2.791571,2348.6,2348.5,0.42578]
[1726216440765,3.163171,2348.7,2348.6,0.42576]
[1726216440961,3.163171,2348.7,2348.6,0.81956]
[1726216440962,0.3716,2348.7,2348.6,0.81956]
[1726216441172,0.3716,2348.7,2348.6,1.20966]
[1726216441863,2.60253416,2348.7,2348.6,1.20966]
[1726216442071,2.60253506,2348.7,2348.6,1.20966]
[1726216442269,0.3716,2348.7,2348.6,1.20966]
[1726216443077,2.60255178,2348.7,2348.6,1.20966]
[1726216443281,2.60253084,2348.7,2348.6,1.20966]
[1726216443582,2.60250718,2348.7,2348.6,1.20966]
[1726216443783,0.3716,2348.7,2348.6,1.20966]
[1726216443980,2.60251024,2348.7,2348.6,1.20966]
[1726216444175,2.60249928,2348.7,2348.6,1.20966]
[1726216444371,0.3716,2348.7,2348.6,1.20966]
[1726216446786,0.42577,2348.6,2348.5,0.42577]
[1726216446985,0.42577,2348.6,2348.2,1.9063]
[1726216447179,2.23144523,2348.4,2348.3,0.42581]
[1726216447689,0.7816,2348.4,2348.3,0.42581]
[1726216448590,3.57090654,2348.4,2348.3,0.42581]
[1726216449898,3.96090654,2348.4,2348.3,0.42581]
[1726216451396,4.38670654,2348.4,2348.3,0.42581]
[1726216459408,1.5974,2348.4,2348.3,0.42581]
[1726216459708,1.5974,2348.4,2348.2,0.42582]
[1726216459709,0.42581,2348.3,2348.2,0.42582]
[1726216460806,1.59741,2348.4,2348.3,0.42581]
[1726216462208,5.85581,2348.4,2348.3,0.42581]